fUSD/lending_fUSD_20250119
["ID","MTS","AMOUNT","RATE_DAILY","PERIOD"]
[349609975,1737327039845,-500.0,0.00021338,2]
[349609977,1737327039854,-893.86,0.00021338,2]
[349609979,1737327039864,-500.0,0.00021338,2]
[349609982,1737327039874,-500.0,0.00021338,2]
[349609984,1737327039883,-524.85,0.00021338,2]
[349609986,1737327039893,-500.0,0.00021338,2]
[349609988,1737327039902,-500.0,0.00021338,2]
[349609990,1737327039911,-500.0,0.00021338,2]
[349609992,1737327039921,-1000.0,0.00021365,2]
[349609994,1737327039931,-1033.39742551,0.00021373,2]
[349609996,1737327039941,-500.0,0.00021391,2]
[349609998,1737327039950,-500.0,0.00021392,2]
[349610015,1737327040086,-500.0,0.00021392,2]
[349610018,1737327040112,-500.0,0.00021392,2]
[349610020,1737327040122,-500.0,0.00021392,2]
[349610022,1737327040131,-500.0,0.00021392,2]
[349610024,1737327040140,-500.0,0.00021392,2]
[349610026,1737327040149,-500.0,0.00021392,2]
[349610028,1737327040158,-500.0,0.00021392,2]
[349610030,1737327040167,-500.0,0.00021392,2]
[349610032,1737327040177,-500.0,0.00021392,2]
[349610034,1737327040186,-500.0,0.00021392,2]
[349610036,1737327040195,-500.0,0.00021392,2]
[349610038,1737327040205,-500.0,0.00021392,2]
[349610041,1737327040214,-500.0,0.00021392,2]
[349610043,1737327040223,-500.0,0.00021392,2]
[349610045,1737327040233,-500.0,0.00021392,2]
[349610047,1737327040242,-290.46039634,0.00021392,2]
[349610049,1737327040251,-500.0,0.00021392,2]
[349610051,1737327040260,-500.0,0.00021392,2]
[349610053,1737327040269,-500.0,0.00021392,2]
[349610054,1737327040279,-1210.93,0.00021392,2]
[349610057,1737327040290,-500.0,0.00021392,2]
[349610059,1737327040299,-500.0,0.00021392,2]
[349610062,1737327040309,-500.0,0.00021392,2]
[349610064,1737327040318,-500.0,0.00021392,2]
[349610065,1737327040328,-500.0,0.00021392,2]
[349610067,1737327040337,-1387.74,0.00021392,2]
[349610069,1737327040346,-550.34,0.00021392,2]
[349610071,1737327040356,-870.92,0.00021392,2]
[349610073,1737327040365,-500.0,0.00021392,2]
[349610075,1737327040375,-500.0,0.00021392,2]
[349610077,1737327040384,-518.49,0.00021392,2]
[349610079,1737327040395,-500.0,0.00021392,2]
[349610081,1737327040405,-574.77,0.00021392,2]
[349610083,1737327040414,-629.39304456,0.00021392,2]
[349610085,1737327040423,-1384.75,0.00021392,2]
[349610087,1737327040433,-308.85,0.00021392,2]
[349610089,1737327040442,-515.24,0.00021392,2]
[349610091,1737327040453,-647.48,0.00021392,2]
[349610093,1737327040472,-500.0,0.00021392,2]
[349610095,1737327040481,-607.78,0.00021392,2]
[349610097,1737327040491,-500.0,0.00021392,2]
[349610099,1737327040503,-500.0,0.00021392,2]
[349610101,1737327040516,-500.0,0.00021392,2]
[349610103,1737327040525,-500.0,0.00021392,2]
[349610105,1737327040535,-500.0,0.00021392,2]
[349610107,1737327040547,-500.0,0.00021392,2]
[349610109,1737327040556,-1109.75,0.00021392,2]
[349610111,1737327040566,-500.0,0.00021392,2]
[349610113,1737327040575,-500.0,0.00021392,2]
[349610115,1737327040585,-500.0,0.00021392,2]
[349610117,1737327040596,-500.0,0.00021392,2]
[349610119,1737327040606,-500.0,0.00021392,2]
[349610121,1737327040615,-500.0,0.00021392,2]
[349610123,1737327040625,-500.0,0.00021392,2]
[349610125,1737327040634,-500.0,0.00021393,2]
[349610126,1737327040644,-500.0,0.00021393,2]
[349610128,1737327040653,-500.0,0.00021393,2]
[349610130,1737327040662,-500.0,0.00021393,2]
[349610132,1737327040671,-500.0,0.00021393,2]
[349610134,1737327040681,-200.0,0.00021423,2]
[349610136,1737327040691,-668.94,0.00021437,2]
[349610138,1737327040700,-500.0,0.00021437,2]
[349610140,1737327040710,-500.0,0.00021437,2]
[349610142,1737327040719,-990.4,0.00021437,2]
[349610144,1737327040729,-500.0,0.00021437,2]
[349610146,1737327040738,-500.0,0.00021437,2]
[349610149,1737327040747,-518.35,0.00021437,2]
[349610151,1737327040757,-380.78161619,0.00021437,2]
[349610153,1737327040766,-500.0,0.00021438,2]
[349610154,1737327040775,-500.0,0.00021438,2]
[349610156,1737327040785,-500.0,0.00021438,2]
[349610158,1737327040794,-500.0,0.00021438,2]
[349610160,1737327040803,-500.0,0.00021438,2]
[349610162,1737327040812,-500.0,0.00021438,2]
[349610164,1737327040821,-500.0,0.00021438,2]
[349610165,1737327040830,-500.0,0.00021438,2]
[349610166,1737327040838,-500.0,0.00021438,2]
[349610167,1737327040847,-500.0,0.00021438,2]
[349610168,1737327040856,-500.0,0.00021438,2]
[349610169,1737327040864,-517.93,0.00021438,2]
[349610170,1737327040874,-500.0,0.00021438,2]
[349610171,1737327040882,-2110.0,0.000215,2]
[349610172,1737327040891,-1033.39742551,0.00021505,2]
[349610173,1737327040901,-2000.0,0.00021538,2]
[349610175,1737327040910,-200.0,0.00021538,2]
[349610177,1737327040920,-3000.0,0.00021538,2]
[349610179,1737327040929,-152.0,0.00021592,3]
[349610181,1737327040939,-500.0,0.00021612,2]
[349610183,1737327040948,-161.059182,0.00021612,2]
[349610184,1737327040957,-500.0,0.00021612,2]
[349610186,1737327040966,-628.52,0.00021612,2]
[349610188,1737327040975,-199.260486,0.00021612,2]
[349610190,1737327040985,-500.0,0.00021612,2]
[349610192,1737327040995,-822.99,0.00021612,2]
[349610195,1737327041005,-653.22,0.00021612,2]
[349610197,1737327041015,-971.52,0.00021612,2]
[349610198,1737327041025,-584.47,0.00021612,2]
[349610200,1737327041035,-500.0,0.00021612,2]
[349610203,1737327041045,-1438.75,0.00021612,2]
[349610205,1737327041055,-952.46,0.00021612,2]
[349610207,1737327041065,-500.0,0.00021612,2]
[349610209,1737327041074,-533.45,0.00021612,2]
[349610211,1737327041083,-500.0,0.00021612,2]
[349610213,1737327041093,-893.86,0.00021612,2]
[349610214,1737327041103,-500.0,0.00021612,2]
[349610216,1737327041112,-260.71,0.00021612,2]
[349610218,1737327041122,-524.85,0.00021612,2]
[349610220,1737327041131,-500.0,0.00021612,2]
[349610222,1737327041141,-500.0,0.00021612,2]
[349610225,1737327041151,-500.0,0.00021612,2]
[349610226,1737327041161,-1033.39742551,0.00021636,2]
[349610229,1737327041171,-500.0,0.00021665,2]
[349610230,1737327041180,-500.0,0.00021666,2]
[349610232,1737327041189,-500.0,0.00021666,2]
[349610234,1737327041199,-500.0,0.00021666,2]
[349610236,1737327041208,-500.0,0.00021666,2]
[349610238,1737327041218,-500.0,0.00021666,2]
[349610240,1737327041227,-500.0,0.00021666,2]
[349610242,1737327041236,-500.0,0.00021666,2]
[349610244,1737327041246,-500.0,0.00021666,2]
[349610246,1737327041255,-500.0,0.00021666,2]
[349610248,1737327041264,-500.0,0.00021666,2]
[349610250,1737327041274,-500.0,0.00021666,2]
[349610252,1737327041283,-500.0,0.00021666,2]
[349610254,1737327041292,-478.04035856,0.00021666,2]
[349610256,1737327041302,-500.0,0.00021666,2]
[349610258,1737327041311,-500.0,0.00021666,2]
[349610260,1737327041320,-500.0,0.00021666,2]
[349610262,1737327041329,-500.0,0.00021666,2]
[349610264,1737327041339,-500.0,0.00021666,2]
[349610266,1737327041348,-1210.93,0.00021666,2]
[349610268,1737327041358,-500.0,0.00021666,2]
[349610270,1737327041367,-500.0,0.00021666,2]
[349610272,1737327041377,-500.0,0.00021666,2]
[349610274,1737327041387,-500.0,0.00021666,2]
[349610276,1737327041396,-500.0,0.00021666,2]
[349610278,1737327041405,-1387.74,0.00021666,2]
[349610280,1737327041415,-550.34,0.00021666,2]
[349610282,1737327041424,-870.92,0.00021666,2]
[349610284,1737327041433,-500.0,0.00021666,2]
[349610286,1737327041442,-500.0,0.00021666,2]
[349610288,1737327041452,-518.49,0.00021666,2]
[349610290,1737327041461,-500.0,0.00021666,2]
[349610292,1737327041472,-574.77,0.00021666,2]
[349610294,1737327041482,-1384.75,0.00021666,2]
[349610296,1737327041491,-515.24,0.00021666,2]
[349610297,1737327041503,-647.48,0.00021666,2]
[349610299,1737327041512,-500.0,0.00021666,2]
[349610302,1737327041523,-607.78,0.00021666,2]
[349610303,1737327041532,-368.06,0.00021666,2]
[349610305,1737327041542,-500.0,0.00021666,2]
[349610307,1737327041551,-500.0,0.00021666,2]
[349610309,1737327041560,-500.0,0.00021666,2]
[349610312,1737327041570,-298.86572067,0.00021666,2]
[349610314,1737327041579,-500.0,0.00021666,2]
[349610315,1737327041589,-1109.75,0.00021666,2]
[349610318,1737327041600,-500.0,0.00021666,2]
[349610320,1737327041610,-500.0,0.00021666,2]
[349610321,1737327041620,-500.0,0.00021666,2]
[349610323,1737327041629,-500.0,0.00021666,2]
[349610325,1737327041639,-500.0,0.00021666,2]
[349610327,1737327041650,-500.0,0.00021666,2]
[349610329,1737327041659,-500.0,0.00021667,2]
[349610332,1737327041669,-500.0,0.00021667,2]
[349610333,1737327041678,-500.0,0.00021667,2]
[349610335,1737327041688,-500.0,0.00021667,2]
[349610337,1737327041697,-1691.2,0.00021699,2]
[349610339,1737327041706,-21991.54082366,0.000217,2]
[349610341,1737327041715,-668.94,0.00021711,2]
[349610343,1737327041725,-500.0,0.00021711,2]
[349610345,1737327041734,-500.0,0.00021711,2]
[349610346,1737327041743,-990.4,0.00021711,2]
[349610347,1737327041753,-500.0,0.00021711,2]
[349610348,1737327041762,-500.0,0.00021711,2]
[349610349,1737327041772,-518.35,0.00021711,2]
[349610350,1737327041781,-500.0,0.00021712,2]
[349610351,1737327041789,-491.70964342,0.00021712,2]
[349610352,1737327041798,-500.0,0.00021712,2]
[349610353,1737327041807,-500.0,0.00021712,2]
[349610354,1737327041816,-500.0,0.00021712,2]
[349610355,1737327041824,-517.93,0.00021712,2]
[349610356,1737327041833,-500.0,0.00021712,2]
[349610357,1737327041842,-150.0,0.00021734,2]
[349610358,1737327041851,-150.0,0.00021737,2]
[349610359,1737327041860,-2000.0,0.00021753,2]
[349610360,1737327041869,-200.0,0.00021753,2]
[349610361,1737327041878,-150.0,0.00021753,2]
[349610362,1737327041887,-166.0,0.00021764,2]
[349610363,1737327041897,-1033.39742551,0.00021768,2]
[349610364,1737327041907,-150.0,0.00021769,2]
[349610365,1737327041918,-2673.11258022,0.00021784,2]
[349610367,1737327041927,-150.0,0.00021795,2]
[349610369,1737327041936,-500.0,0.00021799,2]
[349610371,1737327041946,-4377.47086452,0.000218,2]
[349610373,1737327041955,-33455.88459402,0.000218,2]
[349610375,1737327041964,-55863.41981421,0.000218,4]
[349610377,1737327041973,-150.0,0.00021815,2]
[349610379,1737327041983,-201.24,0.00021817,2]
[349610381,1737327041991,-65.3754618,0.00021824,2]
[349610384,1737327042012,-500.0,0.0002057,2]
[349610385,1737327042021,-434.6245382,0.00021824,2]
[349610387,1737327042031,-150.0,0.00021826,2]
[349610389,1737327042040,-104.56345769,0.00021852,2]
[349610391,1737327042050,-45.43654231,0.00021852,2]
[349610393,1737327042059,-150.0,0.00021868,2]
[349610395,1737327042069,-500.0,0.00021886,2]
[349610397,1737327042078,-500.0,0.00021886,2]
[349610399,1737327042087,-628.52,0.00021886,2]
[349610401,1737327042096,-199.260486,0.00021886,2]
[349610403,1737327042106,-20.08297169,0.00021886,2]
[349610405,1737327042120,-479.91702831,0.00021886,2]
[349610407,1737327042129,-670.08297139,0.00021886,2]
[349610409,1737327042142,-152.90702861,0.00021886,2]
[349610411,1737327042151,-653.22,0.00021886,2]
[349610413,1737327042160,-971.52,0.00021886,2]
[349610415,1737327042170,-584.47,0.00021886,2]
[349610417,1737327042179,-500.0,0.00021886,2]
[349610419,1737327042188,-1438.75,0.00021886,2]
[349610421,1737327042197,-952.46,0.00021886,2]
[349610423,1737327042207,-500.0,0.00021886,2]
[349610425,1737327042217,-533.45,0.00021886,2]
[349610427,1737327042226,-271.92,0.00021886,2]
[349610429,1737327042236,-893.86,0.00021886,2]
[349610431,1737327042245,-198.18103411,0.00021886,2]
[349610433,1737327042253,-524.85,0.00021886,2]
[349610435,1737327042263,-500.0,0.00021886,2]
[349610437,1737327042272,-500.0,0.00021886,2]
[349610439,1737327042281,-241.83,0.00021886,2]
[349610441,1737327042290,-745.0,0.000219,2]
[349610443,1737327042299,-2055.98084918,0.000219,2]
[349610445,1737327042308,-1033.39742551,0.000219,2]
[349610447,1737327042317,-239.27140601,0.000219,4]
[349610449,1737327042325,-816.68249998,0.000219,2]
[349610451,1737327042335,-179.57865483,0.000219,2]
[349610453,1737327042345,-376.34264496,0.000219,2]
[349610455,1737327042354,-200.39040059,0.000219,3]
[349610457,1737327042364,-185.73316756,0.000219,2]
[349610459,1737327042373,-509.04,0.00021917,2]
[349610461,1737327042382,-509.04,0.00021917,2]
[349610463,1737327042391,-509.04,0.00021917,2]
[349610465,1737327042399,-509.04,0.00021917,2]
[349610467,1737327042408,-509.04,0.00021917,2]
[349610469,1737327042417,-2925.0,0.00021918,2]
[349610471,1737327042427,-4000.0,0.00021918,2]
[349610473,1737327042436,-150.0,0.00021918,2]
[349610475,1737327042445,-150.0,0.00021927,2]
[349610477,1737327042455,-150.0,0.00021933,2]
[349610479,1737327042463,-150.0,0.00021937,2]
[349610481,1737327042475,-500.0,0.00021939,2]
[349610483,1737327042484,-500.0,0.0002194,2]
[349610485,1737327042493,-500.0,0.0002194,2]
[349610487,1737327042505,-500.0,0.0002194,2]
[349610488,1737327042514,-500.0,0.0002194,2]
[349610490,1737327042524,-500.0,0.0002194,2]
[349610492,1737327042533,-500.0,0.0002194,2]
[349610494,1737327042543,-500.0,0.0002194,2]
[349610496,1737327042552,-500.0,0.0002194,2]
[349610498,1737327042561,-500.0,0.0002194,2]
[349610500,1737327042571,-500.0,0.0002194,2]
[349610502,1737327042581,-500.0,0.0002194,2]
[349610504,1737327042590,-500.0,0.0002194,2]
[349610507,1737327042600,-500.0,0.0002194,2]
[349610509,1737327042609,-500.0,0.0002194,2]
[349610511,1737327042618,-460.49,0.0002194,2]
[349610513,1737327042627,-500.0,0.0002194,2]
[349610514,1737327042636,-1210.93,0.0002194,2]
[349610516,1737327042645,-500.0,0.0002194,2]
[349610519,1737327042655,-500.0,0.0002194,2]
[349610521,1737327042664,-500.0,0.0002194,2]
[349610522,1737327042673,-500.0,0.0002194,2]
[349610524,1737327042682,-500.0,0.0002194,2]
[349610527,1737327042691,-1387.74,0.0002194,2]
[349610528,1737327042701,-550.34,0.0002194,2]
[349610530,1737327042710,-870.92,0.0002194,2]
[349610532,1737327042720,-500.0,0.0002194,2]
[349610534,1737327042730,-500.0,0.0002194,2]
[349610536,1737327042739,-518.49,0.0002194,2]
[349610539,1737327042748,-272.4,0.0002194,2]
[349610540,1737327042757,-574.77,0.0002194,2]
[349610542,1737327042766,-1384.75,0.0002194,2]
[349610544,1737327042775,-515.24,0.0002194,2]
[349610546,1737327042784,-647.48,0.0002194,2]
[349610547,1737327042794,-500.0,0.0002194,2]
[349610548,1737327042802,-607.78,0.0002194,2]
[349610549,1737327042811,-500.0,0.0002194,2]
[349610550,1737327042820,-500.0,0.0002194,2]
[349610551,1737327042830,-500.0,0.0002194,2]
[349610552,1737327042839,-500.0,0.0002194,2]
[349610553,1737327042848,-1109.75,0.0002194,2]
[349610554,1737327042857,-500.0,0.0002194,2]
[349610555,1737327042867,-500.0,0.0002194,2]
[349610556,1737327042876,-502.34,0.0002194,2]
[349610557,1737327042886,-500.0,0.0002194,2]
[349610558,1737327042895,-500.0,0.0002194,2]
[349610559,1737327042904,-509.04,0.00021941,2]
[349610560,1737327042913,-500.0,0.00021941,2]
[349610561,1737327042922,-500.0,0.00021941,2]
[349610562,1737327042932,-367.86556132,0.00021941,2]
[349610651,1737327043449,-217.0,0.000158,5]
[349610654,1737327043459,-500.0,0.00020516,2]
[349610657,1737327043469,-145.76571302,0.00020569,2]
[349610660,1737327043482,-354.23428698,0.00020569,2]
[349610663,1737327043491,-500.0,0.00020615,2]
[349610666,1737327043503,-793.04119549,0.0002065,2]
[349610669,1737327043513,-419.86615221,0.00020843,2]
[349610672,1737327043526,-500.0,0.00020844,2]
[349610675,1737327043536,-171.45719321,0.00020999,2]
[349610678,1737327043547,-304.55840391,0.00021011,2]
[349610681,1737327043556,-500.0,0.00021118,2]
[349610684,1737327043566,-500.0,0.00021392,2]
[349610687,1737327043575,-500.0,0.00021666,2]
[349610690,1737327043584,-315.28341749,0.0002194,2]
[349610693,1737327043594,-132.13443868,0.00021941,2]
[349610696,1737327043605,-9.42491203,0.00021943,2]
[349610701,1737327043619,-251.10508797,0.00021943,2]
[349610704,1737327043628,-303.02579283,0.0002197,2]
[349610706,1737327043638,-150.0,0.0002197,2]
[349610708,1737327043647,-200.0,0.00021971,2]
[349610710,1737327043656,-108.1804192,0.00021973,2]
[349610712,1737327043668,-4678.8195808,0.00021973,2]
[349610714,1737327043678,-303.09285246,0.00021973,2]
[349610716,1737327043688,-306.31291079,0.00021973,2]
[349610718,1737327043698,-22810.0,0.00021973,2]
[349610720,1737327043708,-472.15649607,0.00021973,2]
[349610722,1737327043731,-500.0,0.00021973,2]
[349610724,1737327043741,-23133.28504001,0.0002198,2]
[349610726,1737327043750,-449.39910216,0.0002198,2]
[349610728,1737327043759,-5000.0,0.00021984,31]
[349610730,1737327043770,-932.0604938,0.00021985,2]
[349610732,1737327043779,-932.0604938,0.00021985,2]
[349610734,1737327043789,-932.0604938,0.00021985,2]
[349610736,1737327043798,-932.0604938,0.00021985,2]
[349610738,1737327043808,-932.0604938,0.00021985,2]
[349610740,1737327043818,-1515.616553,0.00021985,2]
[349610742,1737327043829,-1515.616553,0.00021985,2]
[349610744,1737327043839,-1515.616553,0.00021985,2]
[349610746,1737327043849,-1515.616553,0.00021985,2]
[349610748,1737327043859,-1515.616553,0.00021985,2]
[349610752,1737327043869,-668.94,0.00021985,2]
[349610755,1737327043879,-500.0,0.00021985,2]
[349610757,1737327043890,-500.0,0.00021985,2]
[349610759,1737327043899,-990.4,0.00021985,2]
[349610760,1737327043910,-258.63633861,0.00021985,2]
[349610762,1737327043919,-500.0,0.00021985,2]
[349610764,1737327043929,-518.35,0.00021985,2]
[349610766,1737327043938,-500.0,0.00021986,2]
[349610768,1737327043948,-500.0,0.00021986,2]
[349610770,1737327043958,-500.0,0.00021986,2]
[349610772,1737327043968,-517.93,0.00021986,2]
[349610774,1737327043979,-500.0,0.00021986,2]
[349610776,1737327043989,-500.0,0.00021989,2]
[349610778,1737327044000,-76215.49244511,0.0002199,14]
[349610780,1737327044012,-612.93004344,0.0002199,14]
[349610783,1737327044024,-319.524205,0.0002199,14]
[349610787,1737327044063,-206.75,0.00020889,2]
[349610789,1737327044072,-863.0503796,0.0002199,14]
[349610791,1737327044084,-2046.4794964,0.0002199,14]
[349610793,1737327044096,-1218.7482,0.0002199,14]
[349610796,1737327044108,-14529.79522876,0.0002199,14]
[349610798,1737327044118,-449.39910216,0.0002199,2]
[349610800,1737327044127,-449.39910216,0.0002199,2]
[349610802,1737327044137,-150.0,0.00021994,2]
[349610804,1737327044147,-1000.0,0.00021996,2]
[349610806,1737327044157,-300.0,0.00021999,2]
[349610807,1737327044167,-309.20194245,0.00021999,2]
[349610809,1737327044177,-500.0,0.00021999,2]
[349610811,1737327044187,-1018.82602425,0.00021999,2]
[349610813,1737327044196,-932.0604938,0.00021999,2]
[349610815,1737327044207,-1515.616553,0.00021999,2]
[349610817,1737327044231,-1122.3386289,0.00021999,10]
[349610819,1737327044240,-1243.02850053,0.00021999,10]
[349610821,1737327044250,-1344.29306574,0.00022,2]
[349610823,1737327044262,-2034.99493696,0.00022,2]
[349610825,1737327044275,-737.43114719,0.00022,2]
[349610828,1737327044287,-2975.49627168,0.00022,2]
[349610830,1737327044299,-9165.67651754,0.00022,2]
[349610832,1737327044311,-17815.0,0.00022,2]
[349610834,1737327044323,-1030.0,0.00022,2]
[349610838,1737327044350,-20400.0,0.00022,2]
[349610840,1737327044366,-2057.07010084,0.00022,2]
[349610843,1737327044378,-1031.6,0.00022,2]
[349610845,1737327044389,-2070.17601504,0.00022,2]
[349610847,1737327044401,-83583.84127658,0.00022,2]
[349610849,1737327044413,-2151.34086908,0.00022,2]
[349610851,1737327044424,-2179.66848508,0.00022,2]
[349610854,1737327044436,-39874.142185,0.00022,2]
[349610856,1737327044447,-409.58383939,0.00022,2]
[349610858,1737327044459,-303.25751079,0.00022,2]
[349610860,1737327044471,-3546.86014915,0.00022,2]
[349610862,1737327044482,-12632.50101608,0.00022,2]
[349610865,1737327044495,-2050.0,0.00022,2]
[349610867,1737327044508,-141628.76683392,0.00022,2]
[349610869,1737327044520,-6382.59024659,0.00022,2]
[349610871,1737327044534,-303.49571,0.00022,2]
[349610873,1737327044547,-515000.0,0.00022,2]
[349610876,1737327044559,-223300.00000001,0.00022,2]
[349610878,1737327044570,-10209.65023568,0.00022,2]
[349610889,1737327044675,-287.75487211,0.0002057,2]
[349610892,1737327044692,-212.24512789,0.0002057,2]
[349610894,1737327044701,-500.0,0.0002057,2]
[349610896,1737327044711,-500.0,0.00020615,2]
[349610898,1737327044736,-500.0,0.00020844,2]
[349610900,1737327044746,-332.54927626,0.00021118,2]
[349610902,1737327044755,-8080.20559585,0.00022,2]
[349610904,1737327044765,-5008.03296378,0.00022,2]
[349610906,1737327044778,-1010.8,0.00022,2]
[349610908,1737327044789,-2489.6176992,0.00022,2]
[349610911,1737327044800,-7123.6641588,0.00022,2]
[349610913,1737327044811,-436.42019981,0.00022,2]
[349610915,1737327044822,-368.66630024,0.00022,2]
[349610925,1737327044961,-1965.50595157,0.00022,2]
[349610926,1737327044972,-5755.96575606,0.00022,2]
[349610928,1737327045002,-500.0,0.00020516,2]
[349610930,1737327045012,-212.38315011,0.00020728,2]
[349610933,1737327045024,-580.65804538,0.00020728,2]
[349610935,1737327045033,-201.36,0.00020889,2]
[349610937,1737327045042,-304.55840391,0.00021307,2]
[349610938,1737327045051,-148.81914322,0.00022,2]
[349610941,1737327045063,-345.4099159,0.00022,2]
[349610943,1737327045074,-1023.5921623,0.00022,2]
[349610945,1737327045085,-486.7099531,0.00022,2]
[349611030,1737327045941,-32821.55296623,0.00022,2]
[349611032,1737327045952,-675.99532,0.00022,2]
[349611034,1737327046009,-610.54994,0.00022,2]
[349611035,1737327046021,-980.784,0.00022,2]
[349611036,1737327046032,-300.04245528,0.00022,2]
[349611037,1737327046044,-426.040005,0.00022,2]
[349611040,1737327046055,-3047.62992868,0.00022,2]
[349611043,1737327046066,-32572.24698004,0.00022,2]
[349611046,1737327046077,-7012.65436287,0.00022,2]
[349611048,1737327046089,-4702.1225,0.00022,2]
[349611051,1737327046100,-20286.76802339,0.00022,2]
[349611053,1737327046111,-5549.9,0.00022,2]
[349611055,1737327046122,-5418.0,0.00022,2]
[349611057,1737327046133,-3690.15440453,0.00022,2]
[349611058,1737327046144,-23546.13089427,0.00022,2]
[349611061,1737327046156,-3049.8,0.00022,2]
[349611064,1737327046167,-1287.9563874,0.00022,2]
[349611090,1737327046294,-24309.92356191,0.00022,2]
[349611092,1737327046310,-3603.6,0.00022,2]
[349611094,1737327046322,-1121.32842144,0.00022,2]
[349611096,1737327046334,-51025.0,0.00022,2]
[349611099,1737327046346,-10215.95154485,0.00022,2]
[349611101,1737327046357,-3889.10327879,0.00022,2]
[349611103,1737327046369,-14542.59234248,0.00022,2]
[349611105,1737327046380,-1764.39691752,0.00022,2]
[349611117,1737327046493,-1950.6,0.00022,2]
[349611120,1737327046506,-482.15821,0.00022,2]
[349611122,1737327046517,-558.900001,0.00022,2]
[349611124,1737327046531,-315.31912526,0.00022,2]
[349611126,1737327046542,-812.43332886,0.00022,2]
[349611133,1737327046600,-500.0,0.00020569,2]
[349611135,1737327046609,-500.0,0.0002057,2]
[349611137,1737327046619,-196.502555,0.0002057,2]
[349611139,1737327046628,-793.04119549,0.00020807,2]
[349611141,1737327046637,-500.0,0.00020844,2]
[349611143,1737327046646,-33810.45624951,0.00022,2]
[349611145,1737327046661,-150.0,0.00020821,2]
[349611147,1737327046670,-3097.596,0.00022,2]
[349611149,1737327046684,-261.0699264,0.00022,2]
[349611151,1737327046697,-3469.75000198,0.00022,2]
[349611152,1737327046709,-2250.56477173,0.00022,2]
[349611153,1737327046765,-150.0,0.0002061,2]
[349611154,1737327046776,-167.61014283,0.00022,2]
[349611156,1737327046795,-150.0,0.00020633,2]
[349611158,1737327046805,-304.55840391,0.00021604,2]
[349611160,1737327046815,-2470.36359495,0.00022,2]
[349611163,1737327046826,-277.71669434,0.00022,2]
[349611165,1737327046838,-10262.252,0.00022,2]
[349611168,1737327046848,-568.85758884,0.00022,2]
[349611170,1737327046861,-981.09030433,0.00022,2]
[349611172,1737327046871,-4697.49790201,0.00022,2]
[349611174,1737327046883,-1391.18672294,0.00022,2]
[349611176,1737327046894,-5600.0,0.00022,2]
[349611179,1737327046908,-880.14036294,0.00022,2]
[349611182,1737327046921,-1442.57015366,0.00022,2]
[349611184,1737327046932,-63573.69496754,0.00022,2]
[349611193,1737327046975,-1025.15826444,0.00022,2]
[349611253,1737327114990,1677.65,0.00019641,30]
[349611254,1737327140040,158.39,0.00010137,2]
[349611256,1737327230954,-1999.0,0.000187,2]
[349611257,1737327230979,-159.9756587,0.00018977,2]
[349611258,1737327231003,-346.91042057,0.00019177,2]
[349611259,1737327231027,-300.0,0.00019177,2]
[349611260,1737327231050,-57429.11392073,0.00019178,7]
[349611261,1737327480382,63670.58928491,0.00012,2]
[349611262,1737327630598,-550.0,0.00015,2]
[349611263,1737327630624,-500.0,0.00015,2]